bitfinex/quotes_BTCUSD_20250623
["timestamp","ask_amount","ask_price","bid_price","bid_amount"]
[1750718592127,0.09550186,105150.0,105130.0,0.1997464]
[1750718592335,0.09550186,105150.0,105130.0,0.22828085]
[1750718592555,0.09550186,105150.0,105130.0,0.2092577]
[1750718592777,0.09550186,105150.0,105130.0,0.01902352]
[1750718592988,0.64906392,105150.0,105140.0,0.20924426]
[1750718593194,0.09550186,105150.0,105140.0,0.21875484]
[1750718593418,0.09550186,105150.0,105140.0,0.20924417]
[1750718593639,0.09550186,105150.0,105140.0,0.21875466]
[1750718593862,0.09550186,105150.0,105140.0,0.22826524]
[1750718594319,0.18550186,105150.0,105140.0,0.22826524]
[1750718596325,0.09,105150.0,105140.0,0.22826524]
[1750718596541,4.899393,105190.0,105180.0,0.21866137]
[1750718596757,0.30594186,105190.0,105180.0,0.19964736]
[1750718596971,0.64594186,105190.0,105180.0,0.19964745]
[1750718597210,0.67452686,105190.0,105180.0,0.22816888]
[1750718597643,0.46408686,105190.0,105180.0,0.22816888]
[1750718597859,0.1245486,105190.0,105180.0,0.22816888]
[1750718598072,0.3347486,105190.0,105180.0,0.22816888]
[1750718598286,0.1245486,105190.0,105180.0,0.22816888]
[1750718598723,0.1245486,105190.0,105170.0,0.19016829]
[1750718598947,0.1245486,105190.0,105180.0,0.22817933]
[1750718598948,0.8242688,105190.0,105180.0,0.22817933]
[1750718599173,1.29297066,105190.0,105160.0,0.1901717]
[1750718599413,0.16040186,105180.0,105160.0,0.22820759]
[1750718599635,0.33676186,105180.0,105170.0,0.21869262]
[1750718599865,0.33676186,105180.0,105170.0,0.00950841]
[1750718600077,0.33676186,105180.0,105170.0,0.01901673]
[1750718600292,0.33676186,105180.0,105170.0,0.2282013]
[1750718600537,0.33676186,105180.0,105170.0,0.22820139]
[1750718600775,0.34327003,105180.0,105160.0,0.20919005]
[1750718601018,0.34327003,105180.0,105160.0,0.23771636]
[1750718601260,0.34327003,105180.0,105160.0,0.22820768]
[1750718601492,0.34,105170.0,105160.0,0.21869765]
[1750718601730,0.44201003,105170.0,105160.0,0.21869765]
[1750718601919,0.44201003,105170.0,105160.0,0.20920455]
[1750718602177,0.43550186,105170.0,105160.0,0.21871377]
[1750718602392,0.44202188,105170.0,105160.0,0.22822236]
[1750718602823,0.23760674,105190.0,105160.0,0.20920446]
[1750718602826,0.57760674,105190.0,105160.0,0.21871332]
[1750718603096,0.09550186,105170.0,105150.0,0.20922439]
[1750718603339,0.13075746,105160.0,105140.0,0.19018256]
[1750718603589,0.13075746,105160.0,105150.0,0.21873404]
[1750718603590,0.46322042,105160.0,105150.0,0.21873404]
[1750718603838,0.88602502,105160.0,105130.0,0.19023998]
[1750718604095,0.93387908,105160.0,105140.0,0.21875172]
[1750718604336,0.48175702,105160.0,105150.0,0.00951022]
[1750718604567,0.48011744,105160.0,105150.0,0.19020446]
[1750718604800,0.48011744,105160.0,105150.0,0.00951022]
[1750718605042,0.34971702,105160.0,105150.0,0.20922472]
[1750718605277,0.34971702,105160.0,105150.0,0.19971468]
[1750718605492,0.90327908,105160.0,105140.0,0.19973011]
[1750718605747,0.09550186,105150.0,105140.0,0.21875136]
[1750718605960,0.14175702,105150.0,105140.0,0.20924078]
[1750718606176,0.27244871,105150.0,105140.0,0.22826185]
[1750718606610,0.17694685,105150.0,105140.0,0.22826185]
[1750718606828,0.38442685,105150.0,105140.0,0.22826185]
[1750718607060,0.17694685,105150.0,105140.0,0.22840032]
[1750718607294,0.04625516,105150.0,105140.0,0.22840032]
[1750718608615,0.14010987,105150.0,105140.0,0.22840032]
[1750718608842,0.04625516,105150.0,105140.0,0.22840032]
[1750718609289,0.04632345,105150.0,105140.0,0.22840032]
[1750718609548,0.04632345,105150.0,105140.0,0.1141765]
[1750718609759,0.14027311,105150.0,105140.0,0.1141765]
[1750718609974,0.14027311,105150.0,105140.0,0.10621015]
[1750718611261,0.12281905,105150.0,105140.0,0.10621015]
[1750718611471,0.04649239,105150.0,105140.0,0.10621015]
[1750718613359,0.04649239,105150.0,105140.0,0.19021917]
[1750718613809,0.04649239,105150.0,105140.0,0.21875118]
[1750718614033,0.04649239,105150.0,105140.0,0.22826185]
[1750718614267,0.0465174,105150.0,105140.0,0.22826185]
[1750718614998,0.14069031,105150.0,105140.0,0.22826185]
[1750718615461,0.0465174,105150.0,105140.0,0.11403421]
[1750718615684,0.14080761,105150.0,105140.0,0.11403421]
[1750718615925,0.32782461,105150.0,105140.0,0.11403421]
[1750718616125,0.99455611,105150.0,105140.0,0.19973332]
[1750718616335,0.9002659,105150.0,105140.0,0.19973359]
[1750718616542,1.03095759,105150.0,105140.0,0.19973359]
[1750718616951,1.03098996,105150.0,105140.0,0.21875529]
[1750718617248,1.03098996,105150.0,105140.0,0.22826596]
[1750718617452,0.90029827,105150.0,105140.0,0.23777645]
[1750718617663,0.47924963,105150.0,105140.0,0.23777645]
[1750718618341,0.47924963,105150.0,105140.0,0.18065464]
[1750718618589,0.34673621,105150.0,105140.0,0.18065464]
[1750718618804,0.47956561,105150.0,105140.0,0.18065464]
[1750718619016,0.48846464,105150.0,105140.0,0.18065464]
[1750718619217,0.48846464,105150.0,105140.0,0.14261178]
[1750718619345,0.35563524,105150.0,105140.0,0.16091357]
[1750718619547,1.07359791,105150.0,105130.0,0.19975183]
[1750718619753,0.09550186,105140.0,105130.0,0.22828628]
[1750718619948,0.14209621,105140.0,105130.0,0.21877489]
[1750718620181,0.14209621,105140.0,105130.0,0.2092635]
[1750718620428,0.14209621,105140.0,105130.0,0.19975183]
[1750718620581,0.14209621,105140.0,105130.0,0.21877498]
[1750718620752,0.27499682,105140.0,105130.0,0.2092635]
[1750718620982,0.27499682,105140.0,105130.0,0.21877489]
[1750718621428,0.27499682,105140.0,105130.0,0.10452033]
[1750718621656,0.14209621,105140.0,105130.0,0.10452033]
[1750718622572,0.14211746,105140.0,105130.0,0.10452033]
[1750718622790,0.14211746,105140.0,105130.0,0.09500921]
[1750718622791,0.2370105,105140.0,105130.0,0.09500921]
[1750718623029,0.94579326,105140.0,105110.0,0.20919871]
[1750718623239,0.85310407,105130.0,105110.0,0.20919871]
[1750718623458,0.09490201,105120.0,105110.0,0.19978677]
[1750718623663,0.23714017,105120.0,105110.0,0.20930408]
[1750718623867,0.23714017,105120.0,105110.0,0.21881728]
[1750718624498,0.0467363,105120.0,105110.0,0.21881728]
[1750718624684,0.2513763,105120.0,105110.0,0.21881728]
[1750718624939,0.32724008,105120.0,105110.0,0.21881728]
[1750718625114,0.0467363,105120.0,105110.0,0.21881728]
[1750718625340,0.25135964,105120.0,105110.0,0.21881728]
[1750718625560,0.04671964,105120.0,105110.0,0.21881728]
[1750718625770,0.12256129,105120.0,105110.0,0.9331812]
[1750718625976,0.08581932,105120.0,105110.0,0.9831812]
[1750718626180,0.08581932,105120.0,105110.0,1.20236205]
[1750718626380,0.0568713,105130.0,105110.0,1.18333482]
[1750718626588,0.06353373,105130.0,105120.0,0.93096038]
[1750718626804,0.06353373,105130.0,105120.0,0.37739832]
[1750718627016,0.06353373,105130.0,105120.0,0.93096038]
[1750718627223,0.06353373,105130.0,105120.0,1.00711459]
[1750718627436,0.0568713,105140.0,105130.0,0.62187565]
[1750718627641,0.00013842,105150.0,105140.0,0.28185484]
[1750718627642,0.05700972,105150.0,105140.0,0.28185484]
[1750718627857,0.00680056,105150.0,105140.0,0.8354169]
[1750718628087,0.06367186,105150.0,105140.0,0.93091876]
[1750718628304,0.00013842,105150.0,105140.0,0.98091876]
[1750718628525,0.00013842,105150.0,105140.0,1.19545961]
[1750718628744,0.02856713,105150.0,105140.0,1.27161382]
[1750718629168,0.02856713,105150.0,105140.0,1.79079142]
[1750718629407,0.00013842,105150.0,105140.0,1.79079142]
[1750718629630,0.02856713,105150.0,105140.0,1.71463721]
[1750718630071,0.02856713,105150.0,105140.0,1.99131721]
[1750718630708,0.0568713,105170.0,105160.0,0.21871323]
[1750718630909,0.0568713,105190.0,105180.0,0.21867164]
[1750718631118,0.07508469,105190.0,105180.0,0.21867164]
[1750718632655,0.0626,105170.0,105160.0,0.20920455]
[1750718632898,0.0626,105160.0,105140.0,0.19973314]
[1750718633147,0.18895135,105160.0,105150.0,0.22824426]
[1750718633382,0.01775022,105160.0,105150.0,0.30583157]
[1750718633613,0.28067421,105170.0,105160.0,0.21871323]
[1750718633841,0.28067421,105170.0,105160.0,0.27781607]
[1750718633842,0.39391111,105170.0,105160.0,0.27781607]
[1750718634084,0.39391111,105170.0,105160.0,0.30551781]
[1750718634302,0.20452,105180.0,105170.0,0.20916868]
[1750718634505,0.30667271,105180.0,105170.0,0.29595423]
[1750718634716,0.92562523,105190.0,105180.0,0.21867164]
[1750718634930,0.92562523,105190.0,105180.0,0.30545458]
[1750718634931,0.00046317,105190.0,105180.0,0.30545458]
[1750718635144,0.00046317,105190.0,105180.0,0.27776387]
[1750718635355,0.00046317,105190.0,105180.0,0.3331493]
[1750718635805,0.00046317,105190.0,105180.0,0.39176081]
[1750718636054,0.00046317,105190.0,105180.0,0.6044613]
[1750718636261,0.0001,105200.0,105190.0,0.21865086]
[1750718636475,0.0001,105200.0,105190.0,0.88988258]
[1750718636682,0.00023889,105200.0,105190.0,0.33632052]
[1750718637378,0.00023889,105200.0,105190.0,0.42455602]
[1750718637599,0.00023889,105200.0,105190.0,0.62903602]
[1750718637829,0.00023889,105200.0,105190.0,0.59603602]
[1750718638459,0.00023889,105200.0,105190.0,0.33284883]
[1750718638688,0.00023889,105200.0,105190.0,0.27761333]
[1750718639336,0.00023889,105200.0,105190.0,0.37311519]
[1750718639545,0.00023889,105200.0,105190.0,0.57755519]
[1750718639756,0.00023889,105200.0,105190.0,0.63279069]
[1750718640245,0.00023889,105200.0,105190.0,1.18635275]
[1750718640462,0.00023889,105200.0,105190.0,1.21235808]
[1750718640690,0.00023889,105200.0,105190.0,0.59599602]
[1750718640936,0.00023889,105200.0,105190.0,0.53721818]
[1750718641141,0.00023889,105200.0,105190.0,1.18628218]
[1750718641368,0.00023889,105200.0,105190.0,0.42832012]
[1750718641577,0.00023889,105200.0,105190.0,0.27758276]
[1750718642054,0.00023889,105200.0,105190.0,0.26838415]
[1750718642503,0.00023889,105200.0,105190.0,0.36388601]
[1750718642734,0.00023889,105200.0,105190.0,0.40064403]
[1750718642964,0.00023889,105200.0,105190.0,0.37296423]
[1750718643205,0.00023889,105200.0,105190.0,0.30502164]
[1750718643451,0.00023889,105200.0,105190.0,0.26825754]
[1750718643898,0.00023889,105200.0,105190.0,0.30502164]
[1750718645010,0.00023889,105200.0,105190.0,0.4005235]
[1750718645222,0.00023889,105200.0,105190.0,1.11130264]
[1750718645437,0.00023889,105200.0,105190.0,1.09319573]
[1750718645646,0.00023889,105200.0,105190.0,1.07865488]
[1750718645868,0.00023889,105200.0,105190.0,0.66715875]
[1750718646090,0.00023889,105200.0,105190.0,1.22072081]
[1750718646564,0.00023889,105200.0,105190.0,1.33442081]
[1750718646986,0.00023889,105200.0,105190.0,1.14428867]
[1750718647202,0.00023889,105200.0,105190.0,0.59072661]
[1750718647424,0.00023889,105200.0,105190.0,1.08256995]
[1750718647925,0.00023889,105200.0,105190.0,0.44846789]
[1750718648152,0.00023889,105200.0,105190.0,0.48514534]
[1750718648630,0.00023889,105200.0,105190.0,1.0387074]
[1750718648850,0.00023889,105200.0,105190.0,1.1298708]
[1750718649312,0.00023889,105200.0,105190.0,1.0665708]
[1750718649539,0.00023889,105200.0,105190.0,1.1298708]
[1750718650203,0.00023889,105200.0,105190.0,1.16653489]
[1750718650671,0.064,105240.0,105190.0,0.61297283]
[1750718650919,0.07615421,105230.0,105200.0,0.67656301]
[1750718651177,0.07615421,105230.0,105210.0,0.2042]
[1750718651357,0.07615421,105230.0,105210.0,0.22624741]
[1750718651826,0.14015421,105230.0,105210.0,0.22620741]
[1750718652036,0.07615421,105230.0,105210.0,0.22620741]
[1750718652708,0.06263884,105240.0,105210.0,0.22620741]
[1750718652953,0.06263884,105240.0,105210.0,0.2537065]
[1750718653393,0.03103884,105240.0,105220.0,0.02749909]
[1750718653621,0.00013884,105240.0,105230.0,0.20416]
[1750718653842,0.00013884,105240.0,105230.0,0.22620741]
[1750718654316,0.00013884,105240.0,105230.0,0.77976947]
[1750718654525,0.00013884,105240.0,105230.0,0.80726856]
[1750718654741,0.00013884,105240.0,105230.0,0.96090995]
[1750718654954,0.00013884,105240.0,105230.0,1.01262554]
[1750718655192,0.00013884,105240.0,105230.0,0.11754927]
[1750718655447,0.00013884,105240.0,105230.0,0.44830532]
[1750718655877,0.00013884,105240.0,105230.0,1.03356738]
[1750718656121,0.0305,105290.0,105260.0,0.55356206]
[1750718656345,0.0305,105290.0,105280.0,0.02752456]
[1750718656346,0.00013196,105290.0,105280.0,0.02752456]
[1750718656556,0.06023196,105290.0,105280.0,0.02752456]
[1750718656799,0.0601,105280.0,105270.0,0.09174853]
[1750718657032,0.15560186,105280.0,105270.0,0.09174853]
[1750718657258,0.49560186,105280.0,105270.0,0.05504912]
[1750718657464,0.0301,105280.0,105270.0,0.05504912]
[1750718657683,0.00893019,105280.0,105250.0,0.83100089]
[1750718657906,0.00893019,105280.0,105250.0,0.92650275]
[1750718658134,0.00893019,105280.0,105260.0,0.20404]
[1750718658357,0.00893019,105280.0,105270.0,0.04959581]
[1750718658804,0.0001,105280.0,105270.0,0.04959581]
[1750718659027,0.0001,105280.0,105270.0,0.02755323]
[1750718659451,0.064,105280.0,105270.0,0.02755323]
[1750718659461,0.0001,105280.0,105270.0,0.06429087]
[1750718659925,0.064,105280.0,105270.0,0.06429087]
[1750718660164,0.064,105280.0,105270.0,0.02755323]
[1750718660394,0.0001,105280.0,105270.0,0.02755323]
[1750718662360,0.0001,105280.0,105260.0,0.0918441]
[1750718662589,0.0001,105280.0,105260.0,0.4077595]
[1750718663276,0.0001,105280.0,105260.0,0.37102186]
[1750718663915,0.0001,105280.0,105270.0,0.85435898]
[1750718664130,0.00013196,105290.0,105270.0,0.44713607]
[1750718665161,0.00013196,105290.0,105270.0,1.00069813]
[1750718665609,0.00013196,105290.0,105270.0,0.50883607]
[1750718665803,0.00013196,105290.0,105270.0,1.00069813]
[1750718665996,0.00013196,105290.0,105280.0,0.2754]
[1750718666367,0.00013196,105290.0,105270.0,0.09550186]
[1750718666620,0.00013196,105290.0,105270.0,0.37086186]
[1750718667521,0.00013196,105290.0,105270.0,0.27536]
[1750718667973,0.00013196,105290.0,105270.0,0.92442392]
[1750718668192,0.00013196,105290.0,105270.0,0.37086186]
[1750718668399,0.00013196,105290.0,105280.0,0.01899595]
[1750718668910,0.00013196,105290.0,105280.0,0.20896555]
[1750718675170,0.00013196,105290.0,105280.0,0.41256555]
[1750718676256,0.00013196,105290.0,105280.0,0.50806741]
[1750718676433,0.00013196,105290.0,105280.0,0.5355061]
[1750718677701,0.00013196,105290.0,105280.0,0.3319061]
[1750718677927,0.00013196,105290.0,105280.0,0.6066261]
[1750718679748,0.00013196,105290.0,105280.0,0.64321102]
[1750718681272,0.00013196,105290.0,105280.0,0.67064971]
[1750718681695,0.00013196,105290.0,105280.0,1.57875262]
[1750718681918,0.0625,105330.0,105320.0,0.21838098]
[1750718682111,0.03166263,105330.0,105320.0,0.21838098]
[1750718682397,0.00046263,105330.0,105320.0,0.21838098]
[1750718682623,0.00046263,105330.0,105320.0,0.24591183]
[1750718683271,0.00046263,105330.0,105320.0,0.28261963]
[1750718684356,0.00046263,105330.0,105320.0,0.25508878]
[1750718684567,0.00046263,105330.0,105320.0,0.28268431]
[1750718685215,0.06536263,105330.0,105320.0,0.28268431]
[1750718685435,0.0649,105320.0,105310.0,0.23648629]
[1750718685654,0.71396392,105320.0,105310.0,0.24598143]
[1750718685869,0.71396392,105320.0,105310.0,0.2183859]
[1750718686287,0.71396392,105320.0,105310.0,0.24598143]
[1750718686499,0.16040186,105320.0,105310.0,0.2183859]
[1750718686712,0.40536263,105330.0,105320.0,0.21838098]
[1750718686992,0.0649,105320.0,105310.0,0.24598161]
[1750718687207,0.16040186,105320.0,105310.0,0.21838608]
[1750718688057,0.71396392,105320.0,105310.0,0.21838608]
[1750718689354,0.91712392,105320.0,105310.0,0.21838608]
[1750718689573,0.4026,105310.0,105300.0,0.20889555]
[1750718689810,1.05166392,105310.0,105300.0,0.19939996]
[1750718690026,0.0644,105300.0,105290.0,0.21840154]
[1750718690233,0.91654392,105300.0,105290.0,0.21840154]
[1750718690442,0.91654392,105300.0,105290.0,0.22789848]
[1750718690888,1.25654392,105300.0,105290.0,0.22789848]
[1750718691141,1.05346392,105300.0,105290.0,0.21840163]
[1750718691360,0.70294186,105300.0,105290.0,0.22789857]
[1750718691567,1.25650392,105300.0,105290.0,0.22789857]
[1750718691994,0.70294186,105300.0,105280.0,0.1899696]
[1750718692219,0.64906392,105290.0,105280.0,0.21846321]
[1750718692470,0.71326392,105290.0,105280.0,0.20896555]
[1750718692686,0.15970186,105290.0,105280.0,0.20896555]
[1750718692903,0.71326392,105290.0,105280.0,0.20896555]
[1750718693121,0.15970186,105290.0,105280.0,0.20896555]
[1750718694660,0.12780186,105290.0,105280.0,0.20896555]
[1750718695318,0.0323,105290.0,105280.0,0.20896555]
[1750718695946,0.60382,105300.0,105290.0,0.21844319]
[1750718696158,0.69932186,105300.0,105290.0,0.21844319]
[1750718696786,0.49640186,105300.0,105290.0,0.21844319]
[1750718697002,0.69928186,105300.0,105290.0,0.19944904]
[1750718697223,0.69928186,105300.0,105290.0,0.21844319]
[1750718698110,1.25284392,105300.0,105290.0,0.21844319]
[1750718698317,1.1327538,105300.0,105290.0,0.21844319]
[1750718699890,1.1326338,105300.0,105290.0,0.21844319]
[1750718700097,0.57342,105300.0,105290.0,0.21844319]
[1750718700312,0.34,105300.0,105290.0,0.21844319]
[1750718700520,0.0652,105320.0,105310.0,0.21840171]
[1750718700735,0.7968938,105320.0,105310.0,0.19941116]
[1750718700946,0.34,105310.0,105290.0,0.21844256]
[1750718701178,1.1368538,105300.0,105290.0,0.22794004]
[1750718701608,0.09550186,105300.0,105290.0,0.22794004]
[1750718701822,0.26788,105320.0,105310.0,0.21840171]
[1750718702032,1.1368538,105320.0,105310.0,0.21840171]
[1750718702241,0.9341738,105320.0,105310.0,0.21840171]
[1750718702452,1.1368138,105320.0,105310.0,0.21840171]
[1750718702667,0.9341738,105320.0,105310.0,0.19941125]
[1750718702884,0.0652,105310.0,105300.0,0.22790282]
[1750718703093,0.5941738,105310.0,105300.0,0.22790282]
[1750718703491,0.9341738,105310.0,105300.0,0.22790318]
[1750718703736,0.9341738,105310.0,105300.0,0.20891101]
[1750718704149,0.9341738,105310.0,105300.0,0.21840714]
[1750718704341,0.9341738,105310.0,105300.0,0.21840723]
[1750718704575,0.9341738,105310.0,105300.0,0.22790336]
[1750718704779,0.9341738,105310.0,105300.0,0.21840723]
[1750718705192,1.0241738,105310.0,105300.0,0.21840732]
[1750718705450,0.0638,105300.0,105280.0,0.1899696]
[1750718705660,0.7952938,105290.0,105280.0,0.21846394]
[1750718705871,0.7952538,105290.0,105280.0,0.21846394]
[1750718706094,0.5927738,105290.0,105280.0,0.2089661]
[1750718706304,0.36178186,105290.0,105280.0,0.21846394]
[1750718707355,0.7952538,105290.0,105280.0,0.21846394]
[1750718707811,0.15930186,105290.0,105280.0,0.21846394]
[1750718708042,0.29794186,105290.0,105280.0,0.21846394]
[1750718708925,0.29790186,105290.0,105280.0,0.21846394]
[1750718709764,0.29773439,105290.0,105280.0,0.21846394]
[1750718709973,0.09541439,105290.0,105280.0,0.21846394]
[1750718711024,0.15931439,105290.0,105280.0,0.21846394]
[1750718712090,0.59278633,105290.0,105280.0,0.21846394]
[1750718712952,0.15931439,105290.0,105280.0,0.21846394]
[1750718713357,0.12671439,105290.0,105280.0,0.21846394]
[1750718713789,0.32887439,105290.0,105280.0,0.21846394]
[1750718714425,0.29757439,105290.0,105280.0,0.21846394]
[1750718716343,0.79394633,105290.0,105280.0,0.21846394]
[1750718718047,0.32777439,105290.0,105280.0,0.21846394]
[1750718718261,0.09541439,105290.0,105280.0,0.21846394]
[1750718722175,0.09541439,105290.0,105280.0,0.71846394]
[1750718728581,1.13428633,105290.0,105280.0,0.7089661]
[1750718728792,1.13428633,105290.0,105280.0,0.71846394]
[1750718729224,1.13428633,105290.0,105280.0,0.71846403]
[1750718729511,1.14882718,105290.0,105280.0,0.5]
[1750718729722,6.6873356,105290.0,105280.0,0.5]
[1750718729942,6.73207072,105290.0,105280.0,0.5]
[1750718730176,7.07771324,105290.0,105280.0,0.5]
[1750718730395,7.05877108,105290.0,105280.0,0.5]
[1750718730625,7.32484467,105290.0,105280.0,0.06772008]
[1750718730819,0.0637,105260.0,105240.0,0.228166]
[1750718731121,1.1339538,105250.0,105240.0,0.21879587]
[1750718731574,1.14361892,105250.0,105240.0,0.21879587]
[1750718732024,1.14361892,105250.0,105240.0,0.22829741]
[1750718732237,1.14361892,105250.0,105240.0,0.21879596]
[1750718732450,1.14361892,105250.0,105240.0,0.22829741]
[1750718732669,1.11111892,105250.0,105240.0,0.22829741]
[1750718732887,0.63678186,105250.0,105240.0,0.22829741]
[1750718733755,1.0702538,105250.0,105240.0,0.21879596]
[1750718733979,1.0702538,105250.0,105240.0,0.22829741]
[1750718734202,1.0702538,105250.0,105240.0,0.21879596]
[1750718734417,1.1350538,105250.0,105240.0,0.21879596]
[1750718734630,1.1350538,105250.0,105240.0,0.20929488]
[1750718734631,1.1591688,105250.0,105240.0,0.20929488]
[1750718734841,1.1591688,105250.0,105240.0,0.22829796]
[1750718735042,1.1270688,105250.0,105240.0,0.22829796]
[1750718736156,1.11252795,105250.0,105240.0,0.22829796]
[1750718736368,1.11252795,105250.0,105240.0,0.21879651]
[1750718736592,1.14332795,105250.0,105240.0,0.01933595]
[1750718737029,1.1578688,105250.0,105240.0,0.00033196]
[1750718737481,1.71567013,105250.0,105240.0,0.00033196]
[1750718737710,1.71567013,105250.0,105230.0,0.0002]
[1750718737711,6.85360738,105250.0,105230.0,0.0002]
[1750718737944,6.33363874,105240.0,105230.0,0.0002]
[1750718738530,6.39817959,105240.0,105230.0,0.0002]
[1750718738713,6.43169648,105240.0,105230.0,0.0002]
[1750718738997,6.38305632,105240.0,105230.0,0.0002]
[1750718739203,6.34817959,105240.0,105230.0,0.0002]
[1750718739629,0.57694085,105210.0,105190.0,0.19957627]
[1750718739863,0.7298538,105200.0,105190.0,0.20908242]
[1750718740078,0.29638186,105200.0,105190.0,0.21872723]
[1750718740295,0.09550186,105200.0,105190.0,0.21872723]
[1750718740517,0.29634186,105200.0,105190.0,0.21872723]
[1750718741685,6.54901959,105200.0,105190.0,0.00013884]
[1750718741918,6.54897959,105200.0,105190.0,0.00013884]
[1750718742163,5.73526494,105190.0,105180.0,0.0002]
[1750718742391,5.8307668,105190.0,105180.0,0.00033889]
[1750718742608,5.84530765,105190.0,105180.0,0.00033889]
[1750718742834,5.84530765,105190.0,105140.0,0.07635421]
[1750718742835,0.34,105160.0,105140.0,0.07635421]
[1750718743059,0.43550186,105160.0,105150.0,0.19971459]
[1750718743287,0.63626186,105160.0,105140.0,0.35650889]
[1750718743508,0.09550186,105150.0,105140.0,0.07635421]
[1750718743997,0.09550186,105150.0,105140.0,0.00880722]
[1750718744228,0.29626186,105150.0,105140.0,0.00880722]
[1750718744474,0.32422877,105150.0,105140.0,0.00880722]
[1750718744690,0.75770071,105150.0,105140.0,0.0002]
[1750718744911,1.17506156,105150.0,105140.0,0.00066317]
[1750718745771,1.18470376,105150.0,105140.0,0.00066317]
[1750718746233,1.28765032,105150.0,105140.0,0.00066317]
[1750718747362,6.18704332,105150.0,105140.0,0.00066317]
[1750718747580,6.35542907,105150.0,105140.0,0.00066317]
[1750718747839,6.40542898,105150.0,105140.0,0.00066317]
[1750718748044,5.75494155,105150.0,105140.0,0.00066317]
[1750718748266,6.18206542,105150.0,105140.0,0.00066317]
[1750718748488,0.0629,105130.0,105110.0,0.0085779]
[1750718748679,1.11891138,105120.0,105110.0,0.00013842]
[1750718748973,1.21271356,105120.0,105110.0,0.00013842]
[1750718749191,1.21271356,105120.0,105110.0,0.21895561]
[1750718749192,0.43550186,105120.0,105110.0,0.21895561]
[1750718749403,0.08760911,105150.0,105140.0,0.21875484]
[1750718749404,0.02796691,105150.0,105140.0,0.21875484]
[1750718749624,0.5332,105170.0,105150.0,0.20921429]
[1750718749846,0.5332,105170.0,105150.0,0.20922301]
[1750718749847,0.29598186,105160.0,105150.0,0.20922301]
[1750718750072,0.29594186,105160.0,105140.0,0.20924381]
[1750718750292,0.8194538,105160.0,105140.0,0.21875421]
[1750718750510,0.6189738,105160.0,105140.0,0.2187544]
[1750718750732,0.6189738,105160.0,105150.0,0.02852985]
[1750718750733,0.18550186,105160.0,105150.0,0.02852985]
[1750718750951,0.38594186,105160.0,105150.0,0.20922463]
[1750718751164,0.72594186,105160.0,105150.0,0.22824417]
[1750718751419,0.72590186,105160.0,105150.0,0.23775376]
[1750718751851,0.72590186,105160.0,105150.0,0.21873449]
[1750718752064,0.72590186,105160.0,105150.0,0.00951004]
[1750718752280,0.75391275,105160.0,105150.0,0.21873422]
[1750718752497,0.75391275,105160.0,105150.0,0.00951022]
[1750718752756,1.18738469,105160.0,105150.0,0.00951022]
[1750718752965,1.18738469,105160.0,105150.0,0.01902035]
[1750718753387,1.18730469,105160.0,105150.0,0.02853039]
[1750718753612,0.75383275,105160.0,105150.0,0.23775439]
[1750718754046,0.75383275,105160.0,105150.0,0.20922463]
[1750718754261,0.75383275,105160.0,105150.0,0.21873449]
[1750718754711,0.75383275,105160.0,105150.0,0.23775385]
[1750718754974,0.52550186,105160.0,105150.0,0.23775385]
[1750718755200,0.72578186,105160.0,105150.0,0.26905385]
[1750718755850,0.72578186,105160.0,105150.0,0.21873449]
[1750718756075,1.18805578,105160.0,105140.0,0.20830051]
[1750718756301,1.18805578,105160.0,105140.0,0.21875466]
[1750718756530,0.75458384,105160.0,105150.0,0.21873431]
[1750718756753,0.75458384,105160.0,105150.0,0.20922463]
[1750718756983,0.34,105150.0,105140.0,0.19022256]
[1750718757204,0.8689738,105150.0,105140.0,0.19973359]
[1750718757421,0.8689738,105150.0,105140.0,0.20924453]
[1750718757422,0.43550186,105150.0,105140.0,0.20924453]
[1750718757635,0.88351465,105150.0,105140.0,0.20924435]
[1750718757850,0.8689738,105150.0,105140.0,0.2187552]
[1750718758061,0.63558186,105150.0,105140.0,0.22826569]
[1750718758499,0.71482271,105150.0,105120.0,0.19974228]
[1750718758714,0.88351465,105140.0,105130.0,0.20926344]
[1750718758945,0.45004271,105140.0,105130.0,0.00951203]
[1750718759163,0.45004271,105140.0,105120.0,0.21890476]
[1750718759385,0.20004,105130.0,105120.0,0.20939264]
[1750718759600,0.29554186,105130.0,105120.0,0.1998807]
[1750718759809,0.29554186,105130.0,105120.0,0.21890584]
[1750718760015,0.29554186,105130.0,105120.0,0.22841823]
[1750718760230,0.29554186,105130.0,105120.0,0.23793053]
[1750718760666,0.29554186,105130.0,105120.0,0.21890584]
[1750718760881,0.7290138,105130.0,105120.0,0.00013842]
[1750718761117,1.14725465,105130.0,105120.0,0.00013842]
[1750718761343,1.17578892,105130.0,105120.0,0.00013842]
[1750718761610,6.04664765,105130.0,105120.0,0.00013842]
[1750718761835,1.14725465,105130.0,105120.0,0.00013842]
[1750718762059,1.11585465,105130.0,105120.0,0.00013842]
[1750718762512,1.4790246,105130.0,105120.0,0.00013842]
[1750718762733,1.4790246,105130.0,105090.0,0.20947555]
[1750718762734,0.34,105110.0,105090.0,0.20947555]
[1750718762951,0.34,105110.0,105100.0,0.0190293]
[1750718762952,0.77347194,105110.0,105100.0,0.0190293]
[1750718763163,0.63534186,105110.0,105100.0,0.21883872]
[1750718763380,0.63534186,105110.0,105100.0,0.22835292]
[1750718763623,0.63534186,105110.0,105100.0,0.23786703]
[1750718764106,0.29530186,105110.0,105100.0,0.30256703]
[1750718764356,0.29530186,105110.0,105100.0,0.26996703]
[1750718764591,0.32390486,105110.0,105100.0,0.23786703]
[1750718765472,0.66390486,105110.0,105100.0,0.23786703]
[1750718765715,0.66390486,105110.0,105100.0,0.22835301]
[1750718766449,0.66390486,105110.0,105100.0,0.21883881]
[1750718766706,0.66390486,105110.0,105100.0,0.2378673]
[1750718766970,0.66382486,105110.0,105100.0,0.2378673]
[1750718767492,0.63522186,105110.0,105100.0,0.2378673]
[1750718768067,0.29522186,105110.0,105100.0,0.2378673]
[1750718768125,0.29522186,105110.0,105100.0,0.20932434]
[1750718768276,0.29522186,105110.0,105100.0,0.22835319]
[1750718768493,0.29522186,105110.0,105100.0,0.2378673]
[1750718770940,0.29522186,105110.0,105100.0,0.2698673]
[1750718771615,0.29522186,105110.0,105100.0,0.2378673]
[1750718772090,0.29522186,105110.0,105100.0,0.2373673]
[1750718772549,0.29522186,105110.0,105100.0,0.2368673]
[1750718772759,0.29522186,105110.0,105100.0,0.2358673]
[1750718772982,0.02874257,105130.0,105120.0,0.19977168]
[1750718773201,0.34645591,105130.0,105110.0,0.19977492]
[1750718773413,0.5289738,105120.0,105110.0,0.21881765]
[1750718773672,0.09550186,105120.0,105110.0,0.22833094]
[1750718774094,0.09550186,105120.0,105110.0,0.21881774]
[1750718774347,0.09550186,105120.0,105110.0,0.22833094]
[1750718774561,0.5289738,105120.0,105110.0,0.20930435]
[1750718774781,0.5289738,105120.0,105110.0,0.00951384]
[1750718774994,0.5289738,105120.0,105110.0,0.20930444]
[1750718775417,0.09550186,105120.0,105110.0,0.22833158]
[1750718775648,0.09550186,105120.0,105110.0,0.20930444]
[1750718775874,0.5289738,105120.0,105110.0,0.00951384]